[Event "54th Rubinstein Memorial-A 2018"]
[Site "Polanica-Zdroj"]
[Date "2018.08.24"]
[Round "7"]
[White "Vanduyfhuys, Daria"]
[Black "Bukojemski, Adam"]
[Result "1/2-1/2"]
[ECO "A57"]
[WhiteElo "1878"]
[BlackElo "2233"]
[Annotator "NA"]
[PlyCount "129"]
[EventDate "2018.08.18"]
[EventType "swiss"]
[EventCountry "POL"]
[SourceTitle "playchess.com"]
[Source "ChessBase"]
[SourceQuality "1"]
[TimeControl "40/5400+30:1800+30"]

1. d4 {[%emt 0:00:00]} Nf6 {[%emt 0:01:43]} 2. c4 {[%emt 0:00:00]} c5 {[%emt 0:00:16]} 3. d5 {[%emt 0:00:00]} b5 {[%emt 0:00:12]} 4. Qc2 {[%emt 0:00:15]} Na6 {[%emt 0:00:32]} 5. a3 {[%emt 0:03:45]} bxc4 {[%emt 0:00:41]} 6. e4 {[%emt 0:00:17]} g6 {[%emt 0:00:10]} 7. Bxc4 {[%emt 0:01:17]} Nc7 {[%emt 0:00:05]} 8. Nf3 {[%emt 0:01:29]} Bg7 {[%emt 0:00:20]} 9. Nc3 {[%emt 0:00:34]} d6 {[%emt 0:00:05]} 10. O-O {[%emt 0:01:24]} O-O {[%emt 0:00:03]} 11. h3 {[%emt 0:04:47]} Rb8 {[%emt 0:01:02]} 12. Rb1 {[%emt 0:02:06]} a6 {[%emt 0:00:36]} 13. Qe2 {[%emt 0:06:51]} Nb5 {[%emt 0:21:19]} 14. Bd2 {[%emt 0:10:46]} Qb6 $11 {[%emt 0:12:56]} 15. Na4 {[%emt 0:22:58]} Qc7 {[%emt 0:05:01]} 16. Rfc1 {[%emt 0:03:54]} Nd7 {[%emt 0:05:30]} 17. Qd3 {[%emt 0:04:51]} f5 {[%emt 0:03:52]} 18. exf5 {[%emt 0:02:30]} Rxf5 {[%emt 0:00:28]} 19. b4 {[%emt 0:00:36]} Rxf3 {[%emt 0:03:04]} 20. Qxf3 {[%emt 0:02:34]} Ne5 {[%emt 0:00:15]} 21. Qg3 {[%emt 0:03:41]} Bf5 {[%emt 0:03:39]} 22. Rb3 {[%emt 0:04:04]} Nd4 {[%emt 0:03:21]} 23. Re3 {[%emt 0:00:11]} Bd7 {[%emt 0:01:05]} 24. Rxe5 {[%emt 0:05:26]} Bxe5 {[%emt 0:00:32]} 25. Qxe5 {[%emt 0:00:11]} Bxa4 {[%emt 0:00:45]} 26. bxc5 {[%emt 0:01:16]} dxe5 {[%emt 0:05:06]} 27. d6+ {[%emt 0:00:04]} Kg7 {[%emt 0:00:10]} 28. dxc7 {[%emt 0:00:04]} Rc8 {[%emt 0:00:06]} 29. Ba5 {[%emt 0:00:44]} Bb5 {[%emt 0:00:16]} 30. Bxb5 {[%emt 0:01:09]} Nxb5 {[%emt 0:02:36]} 31. a4 {[%emt 0:06:25]} Nxc7 {[%emt 0:00:11]} 32. Bc3 {[%emt 0:00:07]} Kf6 {[%emt 0:02:12]} 33. f4 {[%emt 0:01:00]} Nd5 {[%emt 0:00:38]} 34. Bxe5+ {[%emt 0:00:11]} Kf5 {[%emt 0:00:36]} 35. g4+ {[%emt 0:02:01]} Ke6 {[%emt 0:00:37]} 36. Kg2 {[%emt 0:04:24]} Nb4 {[%emt 0:06:19]} 37. Rc3 {[%emt 0:03:30]} Kd5 {[%emt 0:00:15]} 38. Rb3 {[%emt 0:01:02]} a5 {[%emt 0:00:04]} 39. Rc3 {[%emt 0:01:08]} Rxc5 {[%emt 0:00:46]} 40. Rxc5+ {[%emt 0:00:00]} Kxc5 {[%emt 0:00:00]} 41. Kf3 {[%emt 0:00:35]} Nc6 {[%emt 0:09:05]} 42. Ke4 {[%emt 0:04:50]} e6 {[%emt 0:04:41]} 43. Bc3 {[%emt 0:10:22]} Kc4 {[%emt 0:01:39]} 44. Bxa5 {[%emt 0:00:05]} Kb3 {[%emt 0:00:03]} 45. Bc7 {[%emt 0:01:12]} Kxa4 {[%emt 0:00:11]} 46. f5 {[%emt 0:00:08]} exf5+ {[%emt 0:00:10]} 47. gxf5 {[%emt 0:00:05]} gxf5+ {[%emt 0:00:02]} 48. Kxf5 {[%emt 0:00:05]} Ne7+ {[%emt 0:01:51]} 49. Ke6 {[%emt 0:00:19]} Ng6 {[%emt 0:00:18]} 50. Kf6 {[%emt 0:00:22]} Kb5 {[%emt 0:00:25]} 51. Kg7 {[%emt 0:01:13]} Kc6 {[%emt 0:00:20]} 52. Kxh7 {[%emt 0:01:17]} Nh4 {[%emt 0:01:15]} 53. Bd8 {[%emt 0:00:33]} Ng2 {[%emt 0:00:05]} 54. Kh6 {[%emt 0:00:45]} Kd7 {[%emt 0:00:10]} 55. Bg5 {[%emt 0:00:08]} Ke6 {[%emt 0:00:09]} 56. Kg6 {[%emt 0:00:29]} Ke5 {[%emt 0:00:11]} 57. Bd2 {[%emt 0:00:17]} Ke4 {[%emt 0:00:33]} 58. Kg5 {[%emt 0:01:31]} Kf3 {[%emt 0:00:22]} 59. Be1 {[%emt 0:01:15]} Ke2 {[%emt 0:00:34]} 60. Bb4 {[%emt 0:00:12]} Kf3 {[%emt 0:00:09]} 61. Bd6 {[%emt 0:00:06]} Kf2 {[%emt 0:01:25]} 62. Kg4 {[%emt 0:00:38]} Ne3+ {[%emt 0:00:02]} 63. Kf4 {[%emt 0:00:09]} Ng2+ {[%emt 0:00:05]} 64. Ke4 {[%emt 0:00:08]} Nh4 {[%emt 0:00:33]} 65. Kf4 {[%emt 0:01:52]} 1/2-1/2

[Event "54th Rubinstein Memorial-A 2018"]
[Site "Polanica-Zdroj"]
[Date "2018.08.24"]
[Round "7"]
[White "Luberanski, Jakub"]
[Black "Djuric, Stefan"]
[Result "1/2-1/2"]
[ECO "B17"]
[WhiteElo "1763"]
[BlackElo "2352"]
[Annotator "NA"]
[PlyCount "73"]
[EventDate "2018.08.18"]
[EventType "swiss"]
[EventCountry "POL"]
[SourceTitle "playchess.com"]
[Source "ChessBase"]
[SourceQuality "1"]
[TimeControl "40/5400+30:1800+30"]

1. e4 c6 2. d4 d5 3. Nc3 dxe4 4. Nxe4 Nd7 5. Ng5 Ngf6 6. Bd3 e6 7. N1f3 Bd6 8. Qe2 O-O 9. Nxe6 Bb4+ 10. c3 Bxc3+ 11. bxc3 fxe6 12. Qxe6+ ({Better is} 12. O-O $18) 12... Kh8 13. O-O Nc5 14. Qe2 Nxd3 15. Qxd3 Qd5 16. Ne5 c5 17. Ba3 ({Günstiger ist} 17. Re1 $16) 17... Re8 $16 18. Qf3 Qxf3 19. Nxf3 cxd4 20. cxd4 Be6 21. Bd6 Bd5 22. a3 Ne4 23. Be5 Nc3 24. Rfe1 Rac8 25. h3 Kg8 26. Kh2 b5 27. Nh4 Rf8 28. f4 a5 29. Re3 Rc6 30. Rg3 g6 31. Re1 Ne4 32. Rge3 Nd2 33. Rg3 Ne4 34. Rge3 Nd2 35. Rg3 Ne4 36. Rge3 Nd2 37. Rg3 1/2-1/2

[Event "54th Rubinstein Memorial-A 2018"]
[Site "Polanica-Zdroj"]
[Date "2018.08.25"]
[Round "8"]
[White "Kucza, Karol"]
[Black "Golecki, Jan"]
[Result "1-0"]
[ECO "B78"]
[WhiteElo "2342"]
[BlackElo "1943"]
[Annotator "NA RC"]
[PlyCount "97"]
[EventDate "2018.08.18"]
[EventType "swiss"]
[EventCountry "POL"]
[SourceTitle "playchess.com"]
[Source "ChessBase"]
[SourceQuality "1"]
[TimeControl "40/5400+30:1800+30"]

1. e4 {[%emt 0:00:00]} c5 {[%emt 0:00:00]} 2. Nf3 {[%emt 0:00:00]} d6 {[%emt 0:00:00]} 3. d4 {[%emt 0:00:00]} cxd4 {[%emt 0:00:00]} 4. Nxd4 {[%emt 0:00:00]} Nf6 {[%emt 0:00:00]} 5. Nc3 {[%emt 0:00:00]} g6 {[%emt 0:00:00]} 6. Be3 {[%emt 0:00:03]} Bg7 {[%emt 0:00:00]} 7. f3 {[%emt 0:00:05]} O-O {[%emt 0:00:08]} 8. Qd2 {[%emt 0:00:02]} Nc6 {[%emt 0:00:07]} 9. Bc4 {[%emt 0:00:28]} Bd7 {[%emt 0:00:10]} 10. O-O-O {[%emt 0:00:08]} Rc8 {[%emt 0:00:04]} 11. Bb3 {[%emt 0:00:06]} Ne5 {[%emt 0:00:10]} 12. Kb1 {[%emt 0:00:06]} Nc4 {[%emt 0:03:53]} 13. Bxc4 {[%emt 0:00:05]} Rxc4 {[%emt 0:00:07]} 14. g4 {[%emt 0:00:14]} Re8 {[%emt 0:12:03]} 15. h4 {[%emt 0:01:43]} h5 {[%emt 0:00:36] B78: Sicilian Dragon: Yugoslav Attack, 9 Bc4 Bd7 10 0-0-0 Rc8} (15... Qa5 16. Nb3 Qa6 17. Bh6 Bh8 18. e5 Nxg4 19. fxg4 Bxe5 20. h5 Bxg4 21. hxg6 hxg6 22. Rdf1 Be6 23. Bf4 {1-0 (34) Zhigalko,S (2655)-Terzi,A (2311) Minsk 2016}) 16. g5 {[%emt 0:25:04]} Nh7 {[%emt 0:00:25]} 17. Nde2 {[%emt 0:00:22]} Qa5 {[%emt 0:06:54]} 18. Bd4 {[%emt 0:00:53]} Be6 $146 {[%emt 0:04:00]} ({Predecessor:} 18... Nf8 19. Bxg7 Kxg7 20. Rhe1 Be6 21. Nd4 Nd7 22. Re3 Rec8 23. Nd5 Qxd2 24. Rxd2 Bxd5 25. exd5 Kf8 26. b3 Rc3 27. Rde2 Rxe3 28. Rxe3 a6 29. a4 Ke8 30. c4 {1-0 (30) Jenkinson,S (2288)-Malushko,N (2191) ICCF email 2014}) 19. Bxg7 {[%emt 0:00:21]} Kxg7 {[%emt 0:00:07]} 20. b3 {[%emt 0:10:36]} Rc7 $14 {[%emt 0:06:07]} 21. Rhe1 {[%emt 0:11:56]} Nf8 {[%emt 0:22:18]} 22. Nd5 {[%emt 0:00:36]} Qxd2 {[%emt 0:00:18]} 23. Rxd2 {[%emt 0:00:31]} Rc5 {[%emt 0:12:42]} 24. c4 {[%emt 0:01:18]} Nd7 {[%emt 0:02:33]} 25. Nd4 {[%emt 0:00:15]} a6 {[%emt 0:03:38]} 26. Kb2 {[%emt 0:07:15]} Kf8 {[%emt 0:04:06]} 27. Nf4 {[%emt 0:03:13]} Re5 {[%emt 0:02:52]} 28. Ndxe6+ {[%emt 0:00:15]} Rxe6 {[%emt 0:00:04]} 29. Nxe6+ {[%emt 0:00:08]} fxe6 {[%emt 0:00:01]} 30. f4 {[%emt 0:00:53]} e5 {[%emt 0:01:14]} 31. f5 {[%emt 0:02:42]} Kg7 {[%emt 0:01:12]} 32. f6+ {[%emt 0:00:20]} Kf7 {[%emt 0:00:04]} 33. fxe7 {[%emt 0:00:41]} Kxe7 {[%emt 0:00:02]} 34. Red1 {[%emt 0:00:26]} Nc5 {[%emt 0:00:12]} 35. Rxd6 {[%emt 0:00:10]} Nxe4 {[%emt 0:00:38]} 36. Rxg6 {[%emt 0:00:23]} Rf8 {[%emt 0:00:16]} 37. Rc1 {[%emt 0:07:44]} Nc5 {[%emt 0:00:38]} 38. Rc2 {[%emt 0:03:57]} e4 {[%emt 0:00:27]} 39. Re2 {[%emt 0:00:32]} Rf4 {[%emt 0:01:14]} 40. b4 {[%emt 0:00:00]} Nd3+ {[%emt 0:00:00]} 41. Kc3 {[%emt 0:02:46]} Ne5 {[%emt 0:00:30]} 42. Rb6 {[%emt 0:02:09]} Rxh4 {[%emt 0:00:27]} 43. g6 {[%emt 0:06:00]} Rg4 {[%emt 0:00:23]} 44. Rxb7+ {[%emt 0:00:19]} Kd6 {[%emt 0:00:17]} 45. Rb6+ {[%emt 0:01:42]} Kc7 {[%emt 0:00:06]} 46. Re6 {[%emt 0:04:40]} Nxg6 {[%emt 0:00:39]} 47. R2xe4 {[%emt 0:00:27]} Rg3+ {[%emt 0:00:36]} 48. Re3 {[%emt 0:00:17]} Rg2 {[%emt 0:00:05]} 49. Rxa6 {[%emt 0:00:10]} 1-0

[Event "54th Rubinstein Memorial-A 2018"]
[Site "Polanica-Zdroj"]
[Date "2018.08.26"]
[Round "9"]
[White "Manik, Mikulas"]
[Black "Sabuk, Piotr"]
[Result "1/2-1/2"]
[ECO "B90"]
[WhiteElo "2408"]
[BlackElo "2377"]
[Annotator "ChessBase"]
[PlyCount "50"]
[EventDate "2018.08.18"]
[EventType "swiss"]
[EventCountry "POL"]
[SourceTitle "playchess.com"]
[Source "ChessBase"]
[SourceQuality "1"]
[TimeControl "40/5400+30:1800+30"]

1. e4 {[%emt 0:00:00]} c5 {[%emt 0:00:00]} 2. Nf3 {[%emt 0:00:00]} d6 {[%emt 0:00:00]} 3. d4 {[%emt 0:00:00]} cxd4 {[%emt 0:00:00]} 4. Nxd4 {[%emt 0:00:00]} Nf6 {[%emt 0:00:05]} 5. Nc3 {[%emt 0:00:16]} a6 {[%emt 0:00:07]} 6. Be3 {[%emt 0:00:45]} e5 {[%emt 0:00:19]} 7. Nf3 {[%emt 0:00:10]} Be7 {[%emt 0:03:43]} 8. a4 {[%emt 0:06:23]} O-O {[%emt 0:12:35]} 9. Bc4 {[%emt 0:05:19]} Be6 {[%emt 0:11:51]} 10. Bb3 {[%emt 0:06:27]} Nc6 {[%emt 0:02:37]} 11. Bg5 {[%emt 0:18:43]} Rc8 {[%emt 0:03:46]} 12. Bxf6 {[%emt 0:12:21]} Bxf6 {[%emt 0:00:20]} 13. Nd5 {[%emt 0:00:37]} Bxd5 {[%emt 0:11:56]} 14. Qxd5 {[%emt 0:07:44]} Ne7 {[%emt 0:07:25]} 15. Qd3 {[%emt 0:02:59]} d5 {[%emt 0:11:40]} 16. O-O {[%emt 0:09:27]} d4 {[%emt 0:00:50]} 17. g3 {[%emt 0:05:38]} Nc6 {[%emt 0:04:43]} 18. Qe2 {[%emt 0:04:10]} Qb6 {[%emt 0:05:16]} 19. Rab1 {[%emt 0:00:14]} Rc7 {[%emt 0:03:10]} 20. Ne1 {[%emt 0:01:39]} Rfc8 {[%emt 0:00:51]} 21. Kg2 {[%emt 0:01:15]} Nb4 {[%emt 0:06:03]} 22. Rd1 {[%emt 0:01:22]} Nc6 {[%emt 0:02:37]} 23. Rb1 {[%emt 0:00:21]} Nb4 {[%emt 0:01:46]} 24. Rd1 {[%emt 0:00:07]} Nc6 {[%emt 0:01:02]} 25. Rb1 {[%emt 0:00:09]} Nb4 {[%emt 0:01:20]} 1/2-1/2

[Event "54th Rubinstein Memorial-A 2018"]
[Site "Polanica-Zdroj"]
[Date "2018.08.26"]
[Round "9"]
[White "Cherepov, Alexej"]
[Black "Psyk, Radoslaw"]
[Result "1-0"]
[ECO "A06"]
[WhiteElo "2245"]
[BlackElo "2304"]
[Annotator "NA"]
[PlyCount "119"]
[EventDate "2018.08.18"]
[EventType "swiss"]
[EventCountry "POL"]
[SourceTitle "playchess.com"]
[Source "ChessBase"]
[SourceQuality "1"]
[TimeControl "40/5400+30:1800+30"]

1. Nf3 d5 2. g3 c6 3. Bg2 Bg4 4. O-O Nd7 5. d4 e6 6. Nbd2 Ngf6 7. Re1 Bd6 8. e4 dxe4 9. Nxe4 {LiveBook: 57 Games} Nxe4 10. Rxe4 Nf6 {D02: Damenbauernspiele} 11. Re1 O-O 12. c3 Qc7 13. Qb3 {[#]} Rad8 $146 ({Vorgänger:} 13... Nd7 14. Ng5 Nf6 {½-½ (66) Pantsulaia,L (2598)-Shirov,A (2676) Al Ain 2015}) 14. Ne5 Bxe5 15. dxe5 Nd7 16. Qa4 Bh5 17. Qxa7 Nxe5 18. Bf4 f6 19. Qe3 Qf7 20. Bxe5 fxe5 21. a4 Bg6 22. Bf1 Bh5 23. Be2 Rd5 24. a5 Rfd8 25. a6 bxa6 26. Rxa6 Bxe2 27. Rxe2 c5 $1 $11 28. Qe4 Qf5 29. Qe3 Qh3 30. Ra1 c4 31. Rae1 Qf5 32. Kg2 Rd1 33. Rxd1 Rxd1 34. Qxe5 Qxe5 35. Rxe5 Kf7 36. Kf3 Kf6 37. Re4 Rb1 38. Rxc4 Rxb2 39. h4 h5 40. Rc7 g6 41. Ke3 Ke5 (41... Rb5 $16 42. Rc8 Re5+ 43. Kd2 Ra5) 42. Rc5+ Kf6 43. f4 Rg2 44. Rg5 Ra2 45. c4 Ra8 46. Kd4 Rd8+ 47. Kc3 Rg8 48. c5 Ke7 49. Kd4 Rd8+ 50. Ke5 Rc8 51. Kd4 Rg8 52. Ke4 Rc8 53. Kd3 Rg8 54. Kc4 Kd7 55. Kd4 Ke7 56. c6 Kd6 57. Rc5 $18 Kc7 58. Ke5 Rd8 59. Kf6 Rd3 60. Rg5 1-0

[Event "54th Rubinstein Memorial-A 2018"]
[Site "Polanica-Zdroj"]
[Date "2018.08.26"]
[Round "9"]
[White "Lapaj, Mateusz"]
[Black "Nurkiewicz, Maciej"]
[Result "1/2-1/2"]
[ECO "B01"]
[WhiteElo "2198"]
[BlackElo "2371"]
[Annotator "NA"]
[PlyCount "60"]
[EventDate "2018.08.18"]
[EventType "swiss"]
[EventCountry "POL"]
[SourceTitle "playchess.com"]
[Source "ChessBase"]
[SourceQuality "1"]
[TimeControl "40/5400+30:1800+30"]

1. e4 {[%emt 0:00:00]} d5 {[%emt 0:00:00]} 2. exd5 {[%emt 0:00:13]} Qxd5 {[%emt 0:00:00]} 3. Nc3 {[%emt 0:00:04]} Qa5 {[%emt 0:00:04]} 4. d4 {[%emt 0:01:16]} Nf6 {[%emt 0:00:09]} 5. Bc4 {[%emt 0:09:05]} Bf5 {[%emt 0:01:50]} 6. Bd2 {[%emt 0:11:05]} c6 {[%emt 0:00:22]} 7. Nf3 {[%emt 0:04:11]} e6 {[%emt 0:00:53]} 8. Nd5 {[%emt 0:15:06]} Qd8 {[%emt 0:00:11]} 9. Nxf6+ {[%emt 0:00:05] LiveBook: 541 Games} gxf6 {[%emt 0:00:23]} 10. Bc3 {[%emt 0:07:57]} Nd7 {[%emt 0:03:04]} 11. Qe2 {[%emt 0:02:47]} Nb6 $11 {[%emt 0:07:34]} 12. Ba5 {[%emt 0:08:44]} Be7 {[%emt 0:07:17]} 13. O-O-O {[%emt 0:05:53]} Qd6 {[%emt 0:03:20]} 14. Bd3 {[%emt 0:01:12]} Bxd3 {[%emt 0:00:47]} 15. Qxd3 {[%emt 0:01:05]} Qd5 {[%emt 0:02:16]} 16. Bxb6 {[%emt 0:01:15]} axb6 {[%emt 0:00:08]} 17. c4 {[%emt 0:03:33]} Qa5 {[%emt 0:00:26]} 18. a3 {[%emt 0:00:12]} b5 {[%emt 0:12:23]} 19. Rhe1 {[%emt 0:07:13]} bxc4 {[%emt 0:02:43]} 20. Qxc4 {[%emt 0:00:17]} O-O {[%emt 0:00:33]} 21. Rd3 {[%emt 0:03:50]} b5 {[%emt 0:01:40]} 22. Qc2 {[%emt 0:00:02]} b4 {[%emt 0:02:14]} 23. Ne5 {[%emt 0:02:50]} bxa3 {[%emt 0:18:00]} 24. Rg3+ {[%emt 0:00:04]} Kh8 {[%emt 0:00:08]} 25. Qxh7+ {[%emt 0:00:07]} Kxh7 {[%emt 0:00:05]} 26. Rh3+ {[%emt 0:00:03]} Kg7 {[%emt 0:00:08]} 27. Rg3+ {[%emt 0:00:05]} Kh7 {[%emt 0:00:09]} 28. Rh3+ {[%emt 0:00:06]} Kg7 {[%emt 0:00:04]} 29. Rg3+ {[%emt 0:00:03]} Kh7 {[%emt 0:00:07]} 30. Rh3+ {[%emt 0:00:02]} Kg7 1/2-1/2

[Event "54th Rubinstein Memorial-A 2018"]
[Site "Polanica-Zdroj"]
[Date "2018.08.26"]
[Round "9"]
[White "Okrucinski, Tadeusz"]
[Black "Mika, Tomasz"]
[Result "1/2-1/2"]
[ECO "D11"]
[WhiteElo "2182"]
[BlackElo "2120"]
[Annotator "NA"]
[PlyCount "79"]
[EventDate "2018.08.18"]
[EventType "swiss"]
[EventCountry "POL"]
[SourceTitle "playchess.com"]
[Source "ChessBase"]
[SourceQuality "1"]
[TimeControl "40/5400+30:1800+30"]

1. d4 {[%emt 0:00:00]} d5 {[%emt 0:00:00]} 2. c4 {[%emt 0:00:00]} c6 {[%emt 0:00:00]} 3. Nf3 {[%emt 0:00:00]} Nf6 {[%emt 0:00:00]} 4. g3 {[%emt 0:00:00]} dxc4 {[%emt 0:01:05]} 5. Bg2 {[%emt 0:00:00]} Bf5 {[%emt 0:01:52]} 6. O-O {[%emt 0:00:15]} Nbd7 {[%emt 0:01:04]} 7. Nc3 {[%emt 0:01:35]} e6 {[%emt 0:01:07]} 8. Nh4 {[%emt 0:00:08]} Be7 {[%emt 0:03:37]} 9. Nxf5 {[%emt 0:03:29]} exf5 {[%emt 0:00:06]} 10. d5 {[%emt 0:01:28]} cxd5 {[%emt 0:04:20]} 11. Nxd5 {[%emt 0:00:19]} Nb6 {[%emt 0:02:55]} 12. Nxb6 {[%emt 0:04:40]} Qxd1 {[%emt 0:00:48]} 13. Rxd1 {[%emt 0:00:11]} axb6 {[%emt 0:00:03]} 14. Bxb7 {[%emt 0:00:27]} Ra7 {[%emt 0:02:33]} 15. Bc6+ {[%emt 0:02:35]} Kf8 {[%emt 0:02:26]} 16. Be3 {[%emt 0:15:53]} Rc7 $18 {[%emt 0:04:00]} 17. Bb5 {[%emt 0:00:25]} Ne4 {[%emt 0:00:43]} 18. f3 {[%emt 0:13:10]} Nd6 {[%emt 0:01:21]} 19. a4 {[%emt 0:00:18]} g5 {[%emt 0:10:24]} 20. Bxb6 {[%emt 0:02:27]} Nxb5 {[%emt 0:00:15]} 21. axb5 {[%emt 0:00:14]} Bc5+ {[%emt 0:00:26]} 22. Bxc5+ {[%emt 0:00:29]} Rxc5 {[%emt 0:00:04]} 23. Ra7 {[%emt 0:12:29]} Kg7 {[%emt 0:00:32]} 24. Rdd7 {[%emt 0:00:08]} Rf8 {[%emt 0:00:04]} 25. Rab7 {[%emt 0:00:51]} Re5 {[%emt 0:03:05]} 26. Kf1 {[%emt 0:07:13]} Kg6 {[%emt 0:10:29]} 27. Re7 {[%emt 0:02:34]} Rd5 {[%emt 0:02:23]} 28. Ke1 {[%emt 0:00:29]} h6 {[%emt 0:01:42]} 29. Red7 {[%emt 0:12:29]} Re5 {[%emt 0:00:50]} 30. Re7 {[%emt 0:00:06]} Rd5 {[%emt 0:00:05]} 31. Rb6+ {[%emt 0:00:24]} Kg7 {[%emt 0:00:31]} 32. Rbb7 {[%emt 0:00:04]} Kg6 {[%emt 0:00:06]} 33. Rb6+ {[%emt 0:07:03]} Kg7 {[%emt 0:00:08]} 34. Rbb7 {[%emt 0:00:05]} Kg6 {[%emt 0:00:06]} 35. Rec7 {[%emt 0:00:35]} Rfd8 {[%emt 0:02:49]} 36. Rxf7 {[%emt 0:02:39]} Rd1+ {[%emt 0:00:14]} 37. Kf2 {[%emt 0:00:04]} R1d2 {[%emt 0:00:43]} 38. Rfe7 {[%emt 0:03:17]} R8d6 {[%emt 0:00:37]} 39. Rbc7 {[%emt 0:07:54]} Rxb2 40. Rxc4 1/2-1/2

[Event "54th Rubinstein Memorial-A 2018"]
[Site "Polanica-Zdroj"]
[Date "2018.08.26"]
[Round "9"]
[White "Sanz Wawer, Daniel"]
[Black "Betkowski, Andrzej"]
[Result "1/2-1/2"]
[ECO "A40"]
[WhiteElo "2180"]
[BlackElo "2041"]
[Annotator "NA"]
[PlyCount "125"]
[EventDate "2018.08.18"]
[EventType "swiss"]
[EventCountry "POL"]
[SourceTitle "playchess.com"]
[Source "ChessBase"]
[SourceQuality "1"]
[TimeControl "40/5400+30:1800+30"]

1. d4 e6 2. c4 b6 3. Nc3 Bb7 4. Nf3 Bb4 5. Qc2 f5 6. a3 Bxc3+ 7. Qxc3 Nf6 8. g3 {E32: Nimzo-Indian: Classical (4 Qc2): 4...0-0} O-O (8... d6 9. Bg2 O-O 10. O-O Nbd7 11. b4 Qe8 12. a4 a5 13. b5 Qh5 14. Qc2 Rae8 15. Ba3 f4 {0-1 (68) Fedoseev,V (2548)-Khismatullin,D (2656) Plovdiv 2012}) 9. Bg2 Qe7 10. O-O d6 11. b4 c5 12. Bg5 $146 ({Predecessor:} 12. dxc5 dxc5 13. b5 {0-1 (30) Peat,M (2078)-Kennedy,C (1897) London 2013}) 12... Nbd7 13. bxc5 dxc5 14. Rfd1 cxd4 15. Qxd4 Nc5 16. Qb2 Rad8 17. Bf4 Rxd1+ 18. Rxd1 Rd8 19. Rxd8+ Qxd8 20. Nd2 Nfe4 21. Nxe4 Qd1+ 22. Bf1 Bxe4 23. Qe5 Qd7 24. Qb8+ Kf7 25. h4 h5 26. Qh8 Kg6 27. Be5 Qe7 28. f3 Nd7 29. Bd4 Bc6 30. g4 fxg4 31. fxg4 Nf6 32. gxh5+ Nxh5 33. Qg8 Qd6 34. Bf2 Nf6 35. h5+ Nxh5 36. e3 Nf6 37. Qh8 Nh7 38. e4 Qf4 39. Bg2 Nf6 40. Qh3 Bxe4 41. Qxe6 Bxg2 42. Kxg2 Qe4+ 43. Qxe4+ Nxe4 44. Bd4 Kf7 45. Kh3 g5 46. Kg4 Kg6 47. Be3 Nf6+ 48. Kf3 Kf5 49. c5 Nd5 50. cxb6 axb6 51. Bd4 g4+ 52. Kg3 b5 53. Ba7 Nc3 54. Bb8 Ne4+ 55. Kg2 Ke6 56. Bf4 Kd5 57. Bh6 Kc4 58. Bf8 Kb3 59. Be7 Nd2 $11 ({Black should try} 59... Kc3 $17 60. Bb4+ Kd4) 60. Kg3 Nc4 61. Kxg4 Nxa3 62. Kf3 Nc2 63. Ke4 1/2-1/2

[Event "54th Rubinstein Memorial-A 2018"]
[Site "Polanica-Zdroj"]
[Date "2018.08.26"]
[Round "9"]
[White "Zaleski, Lukasz"]
[Black "Bilczewski, Kacper"]
[Result "0-1"]
[ECO "B07"]
[WhiteElo "2164"]
[BlackElo "2089"]
[Annotator "NA"]
[PlyCount "46"]
[EventDate "2018.08.18"]
[EventType "swiss"]
[EventCountry "POL"]
[SourceTitle "playchess.com"]
[Source "ChessBase"]
[SourceQuality "1"]
[TimeControl "40/5400+30:1800+30"]

1. e4 d6 2. d4 Nf6 3. Nc3 e5 4. Nge2 Be7 5. h3 c6 6. g4 b5 7. a3 a5 8. Bg2 Nbd7 9. Ng3 $14 (9. d5 $16) 9... Nb6 10. O-O O-O 11. f4 Qc7 12. g5 Ne8 13. f5 f6 14. g6 h6 15. Nh5 Ba6 16. Re1 b4 17. axb4 axb4 18. Ne2 Bxe2 19. Qxe2 Rxa1 20. Qe3 Bd8 21. Qb3+ Kh8 22. Qxb4 c5 23. Qc3 cxd4 0-1

[Event "54th Rubinstein Memorial-A 2018"]
[Site "Polanica-Zdroj"]
[Date "2018.08.26"]
[Round "9"]
[White "Kozak, Antoni"]
[Black "Bukojemski, Adam"]
[Result "1/2-1/2"]
[ECO "A45"]
[WhiteElo "2157"]
[BlackElo "2233"]
[Annotator "NA"]
[PlyCount "100"]
[EventDate "2018.08.18"]
[EventType "swiss"]
[EventCountry "POL"]
[SourceTitle "playchess.com"]
[Source "ChessBase"]
[SourceQuality "1"]
[TimeControl "40/5400+30:1800+30"]

1. d4 {[%emt 0:00:00]} Nf6 {[%emt 0:00:00]} 2. Bf4 {[%emt 0:00:00]} e6 {[%emt 0:00:00]} 3. e3 {[%emt 0:00:05]} c5 {[%emt 0:00:00]} 4. Nf3 {[%emt 0:02:31]} Qb6 {[%emt 0:00:05]} 5. Na3 {[%emt 0:10:16] A46: 1 d4 Nf6 2 Nf3 e6: Torre, London and Colle Systems} cxd4 {[%emt 0:02:25]} 6. Nb5 {[%emt 0:01:11]} Nd5 {[%emt 0:00:36]} 7. Qxd4 {[%emt 0:01:48]} Qxd4 {[%emt 0:00:13]} 8. Nfxd4 {[%emt 0:00:39] LiveBook: 6 Games} Nxf4 {[%emt 0:00:12]} 9. exf4 {[%emt 0:08:57]} (9. Nc7+ Kd8 10. Nxa8 Nd5 11. Be2 b6 12. Bf3 Bb4+ {1-0 (51) Stocek,J (2560)-Navara,D (2732) Ostrava 2017}) 9... Kd8 {[%emt 0:02:29]} 10. Nf3 $146 {[%emt 0:07:56]} ({Predecessor:} 10. O-O-O a6 11. Nc3 Nc6 12. Ne4 Kc7 13. Be2 Nxd4 14. Rxd4 {0-1 (65) Federic,J (2296)-Plat,V (2510) Frydek Mistek 2017}) 10... f6 {[%emt 0:22:24]} 11. O-O-O {[%emt 0:00:37]} a6 {[%emt 0:00:15]} 12. Nd6 {[%emt 0:00:49]} Bxd6 {[%emt 0:00:05]} 13. Rxd6 {[%emt 0:00:05]} Kc7 {[%emt 0:00:03]} 14. Rd2 {[%emt 0:00:51]} b5 {[%emt 0:00:14]} 15. h4 {[%emt 0:06:53]} Nc6 {[%emt 0:05:05]} 16. Rh3 {[%emt 0:00:54]} Bb7 {[%emt 0:00:25]} 17. Rg3 {[%emt 0:02:41]} g6 {[%emt 0:00:26]} 18. h5 {[%emt 0:04:29]} Ne7 {[%emt 0:03:05]} 19. Nh4 {[%emt 0:02:56]} Rag8 {[%emt 0:08:03]} 20. a4 {[%emt 0:07:50]} Bc6 {[%emt 0:01:11]} 21. axb5 {[%emt 0:03:54]} axb5 {[%emt 0:00:01]} 22. Be2 {[%emt 0:06:46]} Ra8 {[%emt 0:10:13]} 23. Rd4 {[%emt 0:01:59]} Ra1+ {[%emt 0:03:31]} 24. Kd2 {[%emt 0:00:04]} Rh1 {[%emt 0:01:30]} 25. Rh3 {[%emt 0:02:51]} Rxh3 {[%emt 0:06:51]} 26. gxh3 {[%emt 0:00:02]} Ra8 {[%emt 0:01:03]} 27. Rd3 {[%emt 0:01:13] [#]} Ra4 $1 {[%emt 0:03:49]} 28. hxg6 {[%emt 0:04:53]} hxg6 {[%emt 0:04:11]} 29. Rg3 {[%emt 0:01:20]} Nf5 {[%emt 0:08:11]} 30. Nxf5 gxf5 31. Rg6 {[%emt 0:03:21]} Rxf4 {[%emt 0:00:15]} 32. f3 {[%emt 0:00:03]} Rh4 {[%emt 0:00:25]} 33. Bf1 {[%emt 0:00:14]} Bxf3 {[%emt 0:00:34]} 34. Bxb5 {[%emt 0:00:22]} Rxh3 {[%emt 0:00:16]} 35. Rxf6 {[%emt 0:00:05]} Rh2+ {[%emt 0:04:13]} 36. Ke3 {[%emt 0:00:39]} Be4 {[%emt 0:02:21]} 37. Rf7 {[%emt 0:00:04]} Rxc2 {[%emt 0:00:24]} 38. Rxd7+ {[%emt 0:00:34]} Kb6 {[%emt 0:00:54]} 39. Bd3 {[%emt 0:00:11]} Bxd3 {[%emt 0:03:38]} ({Inferior is} 39... Rxb2 40. Bxe4 fxe4 41. Rd6+ Kc5 42. Rxe6 $11) 40. Kxd3 {[%emt 0:00:00]} Rxb2 {[%emt 0:00:00]} 41. Rd6+ {[%emt 0:00:11]} Kc5 {[%emt 0:00:20]} 42. Rxe6 {[%emt 0:00:06]} Kd5 {[%emt 0:00:20]} 43. Ra6 {[%emt 0:00:04]} Rb3+ {[%emt 0:00:11]} 44. Ke2 {[%emt 0:00:05]} Ke5 {[%emt 0:00:00]} 45. Ra4 {[%emt 0:00:09]} f4 {[%emt 0:00:28]} 46. Ra8 $11 {[%emt 0:00:04]} Kf5 {[%emt 0:01:42]} 47. Rf8+ {[%emt 0:00:06]} Kg4 {[%emt 0:00:06]} 48. Rg8+ {[%emt 0:00:13]} Kh3 {[%emt 0:00:02]} 49. Kf2 {[%emt 0:00:12]} Rg3 {[%emt 0:00:38]} 50. Rh8+ {[%emt 0:00:05]} Kg4 {[%emt 0:00:05]} 1/2-1/2